fUSD/lending_fUSD_20250204
["ID","MTS","AMOUNT","RATE_DAILY","PERIOD"]
[351637508,1738680637141,-500.0,9.476e-05,2]
[351637510,1738680637150,-500.0,9.476e-05,2]
[351637512,1738680637159,-500.0,9.476e-05,2]
[351637514,1738680637168,-500.0,9.476e-05,2]
[351637516,1738680637178,-500.0,9.476e-05,2]
[351637518,1738680637188,-500.0,9.476e-05,2]
[351637520,1738680637197,-500.0,9.476e-05,2]
[351637522,1738680637206,-500.0,9.476e-05,2]
[351637524,1738680637215,-500.0,9.476e-05,2]
[351637526,1738680637225,-562.23,9.476e-05,2]
[351637528,1738680637235,-500.0,9.476e-05,2]
[351637530,1738680637244,-955.23,9.476e-05,2]
[351637532,1738680637253,-500.0,9.476e-05,2]
[351637534,1738680637263,-500.0,9.476e-05,2]
[351637536,1738680637272,-500.0,9.476e-05,2]
[351637538,1738680637282,-500.0,9.476e-05,2]
[351637540,1738680637291,-500.0,9.476e-05,2]
[351637542,1738680637301,-500.0,9.476e-05,2]
[351637544,1738680637310,-791.33,9.476e-05,2]
[351637546,1738680637319,-500.0,9.476e-05,2]
[351637548,1738680637329,-500.0,9.476e-05,2]
[351637550,1738680637339,-500.0,9.476e-05,2]
[351637552,1738680637349,-500.0,9.476e-05,2]
[351637554,1738680637358,-500.0,9.476e-05,2]
[351637556,1738680637367,-571.91,9.476e-05,2]
[351637558,1738680637378,-500.0,9.476e-05,2]
[351637560,1738680637390,-500.0,9.476e-05,2]
[351637562,1738680637399,-500.0,9.476e-05,2]
[351637564,1738680637408,-500.0,9.476e-05,2]
[351637566,1738680637417,-507.7,9.476e-05,2]
[351637568,1738680637427,-682.38,9.476e-05,2]
[351637570,1738680637438,-500.0,9.476e-05,2]
[351637572,1738680637447,-500.0,9.476e-05,2]
[351637574,1738680637457,-500.0,9.476e-05,2]
[351637576,1738680637467,-500.0,9.476e-05,2]
[351637578,1738680637476,-500.0,9.476e-05,2]
[351637580,1738680637486,-500.0,9.476e-05,2]
[351637582,1738680637495,-500.0,9.476e-05,2]
[351637584,1738680637504,-500.0,9.476e-05,2]
[351637586,1738680637513,-661.74,9.476e-05,2]
[351637589,1738680637523,-500.0,9.476e-05,2]
[351637591,1738680637532,-500.0,9.476e-05,2]
[351637594,1738680637541,-500.0,9.476e-05,2]
[351637597,1738680637551,-500.0,9.476e-05,2]
[351637600,1738680637560,-500.0,9.476e-05,2]
[351637603,1738680637570,-500.0,9.476e-05,2]
[351637605,1738680637579,-500.0,9.476e-05,2]
[351637608,1738680637589,-627.02,9.476e-05,2]
[351637611,1738680637599,-500.0,9.476e-05,2]
[351637614,1738680637608,-500.0,9.476e-05,2]
[351637616,1738680637618,-500.0,9.476e-05,2]
[351637618,1738680637628,-500.0,9.476e-05,2]
[351637620,1738680637645,-500.0,9.476e-05,2]
[351637622,1738680637655,-178.03443225,9.476e-05,2]
[351637624,1738680637665,-500.0,9.476e-05,2]
[351637626,1738680637674,-500.0,9.476e-05,2]
[351637628,1738680637684,-500.0,9.476e-05,2]
[351637630,1738680637694,-500.0,9.476e-05,2]
[351637633,1738680637703,-500.0,9.476e-05,2]
[351637635,1738680637713,-500.0,9.476e-05,2]
[351637638,1738680637722,-500.0,9.476e-05,2]
[351637640,1738680637732,-500.0,9.476e-05,2]
[351637641,1738680637742,-500.0,9.476e-05,2]
[351637643,1738680637752,-500.0,9.476e-05,2]
[351637646,1738680637763,-500.0,9.476e-05,2]
[351637648,1738680637773,-500.0,9.476e-05,2]
[351637649,1738680637783,-591.8433223,9.476e-05,2]
[351637651,1738680637792,-568.34,9.476e-05,2]
[351637653,1738680637803,-500.0,9.476e-05,2]
[351637655,1738680637812,-500.0,9.476e-05,2]
[351637658,1738680637822,-500.0,9.476e-05,2]
[351637660,1738680637833,-500.0,9.476e-05,2]
[351637662,1738680637842,-667.67,9.476e-05,2]
[351637663,1738680637852,-500.0,9.476e-05,2]
[351637666,1738680637863,-500.0,9.476e-05,2]
[351637667,1738680637872,-304.40639347,9.476e-05,2]
[351637670,1738680637882,-500.0,9.476e-05,2]
[351637672,1738680637895,-500.0,9.477e-05,2]
[351637674,1738680637905,-1284.74,9.477e-05,2]
[351637676,1738680637915,-500.0,9.477e-05,2]
[351637678,1738680637924,-500.0,9.477e-05,2]
[351637680,1738680637934,-500.0,9.477e-05,2]
[351637682,1738680637943,-500.0,9.477e-05,2]
[351637684,1738680637953,-500.0,9.477e-05,2]
[351637686,1738680637963,-500.0,9.477e-05,2]
[351637687,1738680637972,-548.07,9.477e-05,2]
[351637690,1738680637982,-1000.0,9.477e-05,2]
[351637691,1738680637992,-531.06,9.477e-05,2]
[351637693,1738680638002,-500.0,9.477e-05,2]
[351637696,1738680638016,-523.52,9.477e-05,2]
[351637697,1738680638025,-502.53,9.477e-05,2]
[351637699,1738680638035,-500.0,9.478e-05,2]
[351637701,1738680638044,-573.49,9.478e-05,2]
[351637704,1738680638055,-500.0,9.478e-05,2]
[351637706,1738680638064,-500.0,9.478e-05,2]
[351637707,1738680638074,-500.0,9.478e-05,2]
[351637709,1738680638084,-500.0,9.478e-05,2]
[351637711,1738680638094,-500.0,9.478e-05,2]
[351637713,1738680638104,-582.91,9.478e-05,2]
[351637715,1738680638113,-500.0,9.478e-05,2]
[351637717,1738680638123,-500.0,9.478e-05,2]
[351637719,1738680638132,-500.0,9.478e-05,2]
[351637721,1738680638145,-566.69,9.478e-05,2]
[351637723,1738680638155,-520.23,9.478e-05,2]
[351637725,1738680638165,-536.62,9.478e-05,2]
[351637727,1738680638175,-521.41,9.478e-05,2]
[351637729,1738680638184,-593.34,9.478e-05,2]
[351637731,1738680638194,-500.0,9.478e-05,2]
[351637733,1738680638204,-500.0,9.478e-05,2]
[351637735,1738680638213,-500.0,9.478e-05,2]
[351637737,1738680638223,-500.0,9.478e-05,2]
[351637739,1738680638233,-510.91,9.478e-05,2]
[351637741,1738680638242,-500.0,9.478e-05,2]
[351637743,1738680638251,-500.0,9.478e-05,2]
[351637745,1738680638261,-500.0,9.478e-05,2]
[351637747,1738680638270,-500.0,9.478e-05,2]
[351637749,1738680638281,-500.0,9.478e-05,2]
[351637751,1738680638291,-184.79071621,9.478e-05,2]
[351637753,1738680638300,-530.01,9.478e-05,2]
[351637755,1738680638310,-500.0,9.478e-05,2]
[351637757,1738680638319,-500.0,9.478e-05,2]
[351637760,1738680638329,-500.0,9.478e-05,2]
[351637761,1738680638339,-500.0,9.478e-05,2]
[351637763,1738680638348,-500.0,9.478e-05,2]
[351637765,1738680638358,-500.0,9.478e-05,2]
[351637767,1738680638367,-500.0,9.478e-05,2]
[351637769,1738680638377,-171.75,9.478e-05,2]
[351637771,1738680638391,-500.0,9.478e-05,2]
[351637774,1738680638400,-500.0,9.478e-05,2]
[351637776,1738680638411,-635.5,9.478e-05,2]
[351637778,1738680638421,-500.0,9.478e-05,2]
[351637780,1738680638431,-334.90246327,9.478e-05,2]
[351637782,1738680638441,-603.94,9.478e-05,2]
[351637784,1738680638451,-500.0,9.478e-05,2]
[351637786,1738680638461,-500.0,9.478e-05,2]
[351637788,1738680638471,-500.0,9.478e-05,2]
[351637790,1738680638482,-611.74,9.478e-05,2]
[351637792,1738680638491,-500.0,9.478e-05,2]
[351637794,1738680638501,-500.0,9.478e-05,2]
[351637796,1738680638511,-500.0,9.478e-05,2]
[351637798,1738680638521,-500.0,9.478e-05,2]
[351637800,1738680638531,-500.0,9.478e-05,2]
[351637802,1738680638542,-563.5,9.478e-05,2]
[351637804,1738680638551,-500.0,9.478e-05,2]
[351637806,1738680638562,-360.74218143,9.478e-05,2]
[351637808,1738680638572,-500.0,9.478e-05,2]
[351637810,1738680638581,-500.0,9.478e-05,2]
[351637812,1738680638590,-500.0,9.478e-05,2]
[351637814,1738680638600,-500.0,9.478e-05,2]
[351637816,1738680638609,-500.0,9.478e-05,2]
[351637818,1738680638619,-500.0,9.478e-05,2]
[351637820,1738680638629,-632.22,9.478e-05,2]
[351637822,1738680638644,-351.51315986,9.478e-05,2]
[351637824,1738680638654,-529.84,9.478e-05,2]
[351637826,1738680638663,-500.0,9.478e-05,2]
[351637828,1738680638672,-629.17,9.478e-05,2]
[351637830,1738680638680,-500.0,9.478e-05,2]
[351637832,1738680638689,-500.0,9.478e-05,2]
[351637834,1738680638701,-500.0,9.478e-05,2]
[351637836,1738680638710,-648.55,9.478e-05,2]
[351637838,1738680638720,-500.0,9.478e-05,2]
[351637840,1738680638729,-500.0,9.478e-05,2]
[351637842,1738680638739,-500.0,9.478e-05,2]
[351637844,1738680638748,-500.0,9.478e-05,2]
[351637846,1738680638758,-500.0,9.478e-05,2]
[351637848,1738680638768,-341.56339284,9.478e-05,2]
[351637850,1738680638778,-631.63,9.478e-05,2]
[351637852,1738680638787,-500.0,9.478e-05,2]
[351637854,1738680638797,-203.3,9.478e-05,2]
[351637856,1738680638806,-500.0,9.478e-05,2]
[351637858,1738680638816,-500.0,9.478e-05,2]
[351637860,1738680638824,-500.0,9.478e-05,2]
[351637862,1738680638834,-500.0,9.478e-05,2]
[351637864,1738680638843,-500.0,9.478e-05,2]
[351637866,1738680638853,-500.0,9.478e-05,2]
[351637868,1738680638862,-500.0,9.478e-05,2]
[351637870,1738680638872,-500.0,9.478e-05,2]
[351637872,1738680638882,-500.0,9.478e-05,2]
[351637874,1738680638895,-500.0,9.478e-05,2]
[351637876,1738680638904,-478.90106815,9.478e-05,2]
[351637878,1738680638914,-500.0,9.478e-05,2]
[351637880,1738680638923,-516.01,9.478e-05,2]
[351637882,1738680638932,-500.0,9.478e-05,2]
[351637884,1738680638941,-500.0,9.478e-05,2]
[351637886,1738680638951,-646.5,9.478e-05,2]
[351637888,1738680638960,-500.0,9.478e-05,2]
[351637890,1738680638970,-500.0,9.478e-05,2]
[351637891,1738680638979,-500.0,9.478e-05,2]
[351637894,1738680638988,-500.0,9.478e-05,2]
[351637895,1738680639000,-500.0,9.478e-05,2]
[351637897,1738680639009,-547.43,9.478e-05,2]
[351637899,1738680639019,-500.0,9.478e-05,2]
[351637901,1738680639028,-999.0,9.479e-05,2]
[351637903,1738680639038,-999.0,9.479e-05,2]
[351637905,1738680639047,-999.0,9.479e-05,2]
[351637907,1738680639056,-999.0,9.479e-05,2]
[351637910,1738680639067,-999.0,9.479e-05,2]
[351637911,1738680639078,-999.0,9.479e-05,2]
[351637913,1738680639087,-999.0,9.479e-05,2]
[351637915,1738680639097,-999.0,9.479e-05,2]
[351637917,1738680639106,-999.0,9.479e-05,2]
[351637919,1738680639115,-999.0,9.479e-05,2]
[351637921,1738680639125,-999.0,9.479e-05,2]
[351637924,1738680639138,-999.0,9.479e-05,2]
[351637925,1738680639148,-999.0,9.479e-05,2]
[351637928,1738680639157,-999.0,9.479e-05,2]
[351637930,1738680639167,-999.0,9.479e-05,2]
[351637932,1738680639178,-999.0,9.479e-05,2]
[351637933,1738680639188,-999.0,9.479e-05,2]
[351637935,1738680639199,-999.0,9.479e-05,2]
[351637936,1738680639210,-999.0,9.479e-05,2]
[351637937,1738680639267,-1019.0,9.479e-05,2]
[351637938,1738680639278,-439.46,9.48e-05,2]
[351637939,1738680639288,-306.1,9.48e-05,2]
[351637940,1738680639298,-1086.97075593,9.489e-05,2]
[351637942,1738680639308,-500.0,9.5e-05,3]
[351637944,1738680639317,-1000.0,9.6e-05,3]
[351637946,1738680639327,-1000.0,9.611e-05,2]
[351637949,1738680639337,-500.0,9.612e-05,2]
[351637950,1738680639346,-400.34086706,9.612e-05,2]
[351637953,1738680639356,-500.0,9.612e-05,2]
[351637954,1738680639366,-500.0,9.612e-05,2]
[351637957,1738680639375,-500.0,9.612e-05,2]
[351637958,1738680639389,-500.0,9.612e-05,2]
[351637961,1738680639398,-500.0,9.612e-05,2]
[351637962,1738680639408,-500.0,9.612e-05,2]
[351637964,1738680639417,-500.0,9.612e-05,2]
[351637966,1738680639426,-323.623537,9.612e-05,2]
[351637968,1738680639436,-500.0,9.612e-05,2]
[351637970,1738680639445,-500.0,9.612e-05,2]
[351637972,1738680639455,-500.0,9.612e-05,2]
[351637974,1738680639464,-500.0,9.612e-05,2]
[351637977,1738680639474,-500.0,9.612e-05,2]
[351637978,1738680639483,-500.0,9.612e-05,2]
[351637981,1738680639493,-500.0,9.612e-05,2]
[351637982,1738680639502,-500.0,9.612e-05,2]
[351637984,1738680639512,-500.0,9.612e-05,2]
[351637986,1738680639521,-500.0,9.612e-05,2]
[351637988,1738680639530,-500.0,9.612e-05,2]
[351637990,1738680639541,-500.0,9.612e-05,2]
[351637992,1738680639550,-511.02,9.612e-05,2]
[351637994,1738680639560,-309.680856,9.612e-05,2]
[351637996,1738680639570,-500.0,9.612e-05,2]
[351637998,1738680639580,-500.0,9.612e-05,2]
[351638000,1738680639589,-564.29,9.612e-05,2]
[351638002,1738680639599,-565.28,9.612e-05,2]
[351638004,1738680639608,-500.0,9.612e-05,2]
[351638006,1738680639617,-534.05,9.612e-05,2]
[351638008,1738680639627,-521.4762325,9.612e-05,2]
[351638010,1738680639642,-500.0,9.612e-05,2]
[351638012,1738680639651,-500.0,9.612e-05,2]
[351638014,1738680639660,-500.0,9.612e-05,2]
[351638016,1738680639670,-856.73,9.612e-05,2]
[351638018,1738680639680,-754.23,9.612e-05,2]
[351638021,1738680639690,-635.02,9.612e-05,2]
[351638023,1738680639699,-687.16,9.612e-05,2]
[351638025,1738680639709,-500.0,9.612e-05,2]
[351638027,1738680639719,-1046.88,9.612e-05,2]
[351638029,1738680639728,-500.0,9.612e-05,2]
[351638031,1738680639736,-500.0,9.612e-05,2]
[351638033,1738680639747,-500.0,9.612e-05,2]
[351638035,1738680639756,-500.0,9.612e-05,2]
[351638037,1738680639766,-500.0,9.612e-05,2]
[351638039,1738680639775,-500.0,9.612e-05,2]
[351638041,1738680639785,-933.65,9.612e-05,2]
[351638043,1738680639795,-500.0,9.612e-05,2]
[351638045,1738680639805,-500.0,9.612e-05,2]
[351638047,1738680639814,-937.95,9.612e-05,2]
[351638049,1738680639824,-556.9,9.612e-05,2]
[351638051,1738680639833,-559.25,9.612e-05,2]
[351638053,1738680639843,-500.0,9.612e-05,2]
[351638055,1738680639853,-584.03,9.612e-05,2]
[351638057,1738680639863,-500.0,9.612e-05,2]
[351638059,1738680639873,-500.0,9.612e-05,2]
[351638061,1738680639882,-593.6,9.612e-05,2]
[351638063,1738680639895,-588.57,9.612e-05,2]
[351638065,1738680639905,-500.0,9.612e-05,2]
[351638067,1738680639915,-500.65,9.612e-05,2]
[351638069,1738680639925,-1047.6,9.612e-05,2]
[351638071,1738680639934,-500.0,9.612e-05,2]
[351638073,1738680639943,-500.0,9.612e-05,2]
[351638075,1738680639953,-641.11,9.612e-05,2]
[351638077,1738680639963,-859.98,9.612e-05,2]
[351638079,1738680639972,-500.0,9.612e-05,2]
[351638081,1738680639982,-659.11,9.612e-05,2]
[351638083,1738680639992,-816.08,9.612e-05,2]
[351638085,1738680640002,-1339.13,9.612e-05,2]
[351638087,1738680640013,-500.0,9.612e-05,2]
[351638089,1738680640022,-500.0,9.612e-05,2]
[351638091,1738680640031,-500.0,9.612e-05,2]
[351638093,1738680640040,-500.0,9.612e-05,2]
[351638095,1738680640051,-606.8,9.612e-05,2]
[351638097,1738680640060,-529.35,9.612e-05,2]
[351638099,1738680640070,-500.0,9.612e-05,2]
[351638101,1738680640080,-500.0,9.612e-05,2]
[351638103,1738680640091,-500.0,9.612e-05,2]
[351638105,1738680640100,-984.84,9.612e-05,2]
[351638107,1738680640109,-542.77,9.612e-05,2]
[351638109,1738680640118,-500.0,9.612e-05,2]
[351638111,1738680640128,-500.0,9.612e-05,2]
[351638113,1738680640139,-500.0,9.612e-05,2]
[351638115,1738680640149,-668.73,9.612e-05,2]
[351638117,1738680640159,-500.0,9.612e-05,2]
[351638118,1738680640168,-500.0,9.612e-05,2]
[351638121,1738680640178,-875.8,9.612e-05,2]
[351638123,1738680640188,-500.0,9.613e-05,2]
[351638124,1738680640197,-500.0,9.613e-05,2]
[351638127,1738680640207,-500.0,9.613e-05,2]
[351638129,1738680640217,-648.26,9.613e-05,2]
[351638131,1738680640227,-500.0,9.613e-05,2]
[351638132,1738680640236,-500.0,9.613e-05,2]
[351638134,1738680640245,-500.0,9.613e-05,2]
[351638136,1738680640255,-500.0,9.613e-05,2]
[351638139,1738680640265,-500.0,9.613e-05,2]
[351638141,1738680640274,-500.0,9.613e-05,2]
[351638143,1738680640285,-595.82,9.613e-05,2]
[351638145,1738680640295,-518.82,9.613e-05,2]
[351638147,1738680640309,-500.0,9.613e-05,2]
[351638149,1738680640319,-1324.85,9.613e-05,2]
[351638151,1738680640327,-559.9,9.613e-05,2]
[351638153,1738680640338,-518.9,9.613e-05,2]
[351638155,1738680640348,-500.0,9.613e-05,2]
[351638157,1738680640357,-516.13,9.613e-05,2]
[351638159,1738680640367,-500.0,9.613e-05,2]
[351638161,1738680640375,-500.0,9.613e-05,2]
[351638163,1738680640387,-549.17,9.613e-05,2]
[351638165,1738680640396,-500.0,9.613e-05,2]
[351638167,1738680640405,-500.0,9.613e-05,2]
[351638169,1738680640415,-500.0,9.613e-05,2]
[351638171,1738680640424,-500.0,9.613e-05,2]
[351638173,1738680640433,-500.0,9.613e-05,2]
[351638175,1738680640443,-551.71,9.613e-05,2]
[351638177,1738680640453,-500.0,9.613e-05,2]
[351638179,1738680640463,-500.0,9.613e-05,2]
[351638181,1738680640472,-500.0,9.613e-05,2]
[351638183,1738680640482,-500.0,9.613e-05,2]
[351638185,1738680640492,-500.0,9.613e-05,2]
[351638187,1738680640501,-500.0,9.613e-05,2]
[351638189,1738680640510,-500.0,9.613e-05,2]
[351638191,1738680640519,-500.0,9.613e-05,2]
[351638193,1738680640529,-635.7,9.613e-05,2]
[351638195,1738680640541,-500.0,9.613e-05,2]
[351638197,1738680640551,-500.0,9.613e-05,2]
[351638199,1738680640560,-500.0,9.613e-05,2]
[351638201,1738680640570,-500.0,9.613e-05,2]
[351638203,1738680640579,-500.0,9.613e-05,2]
[351638205,1738680640589,-500.0,9.613e-05,2]
[351638207,1738680640598,-500.0,9.613e-05,2]
[351638209,1738680640607,-237.38,9.613e-05,2]
[351638211,1738680640617,-500.0,9.613e-05,2]
[351638212,1738680640626,-500.0,9.613e-05,2]
[351638214,1738680640637,-500.0,9.613e-05,2]
[351638216,1738680640646,-500.0,9.613e-05,2]
[351638219,1738680640656,-500.0,9.613e-05,2]
[351638221,1738680640666,-955.23,9.613e-05,2]
[351638223,1738680640676,-500.0,9.613e-05,2]
[351638224,1738680640685,-194.48,9.613e-05,2]
[351638226,1738680640695,-532.38,9.613e-05,2]
[351638228,1738680640704,-500.0,9.613e-05,2]
[351638230,1738680640714,-500.0,9.613e-05,2]
[351638232,1738680640723,-184.17,9.613e-05,2]
[351638235,1738680640733,-791.33,9.613e-05,2]
[351638237,1738680640742,-165.46,9.613e-05,2]
[351638238,1738680640752,-500.0,9.613e-05,2]
[351638240,1738680640761,-602.27,9.613e-05,2]
[351638243,1738680640771,-500.0,9.613e-05,2]
[351638244,1738680640781,-571.91,9.613e-05,2]
[351638247,1738680640791,-647.57,9.613e-05,2]
[351638248,1738680640800,-262.83,9.613e-05,2]
[351638250,1738680640810,-500.0,9.613e-05,2]
[351638252,1738680640819,-500.0,9.613e-05,2]
[351638254,1738680640828,-682.38,9.613e-05,2]
[351638256,1738680640837,-500.0,9.613e-05,2]
[351638258,1738680640847,-500.0,9.613e-05,2]
[351638260,1738680640856,-500.0,9.613e-05,2]
[351638262,1738680640866,-500.0,9.613e-05,2]
[351638265,1738680640877,-500.0,9.613e-05,2]
[351638266,1738680640888,-500.0,9.613e-05,2]
[351638268,1738680640897,-545.71,9.613e-05,2]
[351638270,1738680640907,-661.74,9.613e-05,2]
[351638272,1738680640916,-500.0,9.613e-05,2]
[351638274,1738680640926,-500.0,9.613e-05,2]
[351638276,1738680640936,-500.0,9.613e-05,2]
[351638278,1738680640946,-500.0,9.613e-05,2]
[351638280,1738680640955,-500.0,9.613e-05,2]
[351638282,1738680640964,-500.0,9.613e-05,2]
[351638285,1738680640974,-500.0,9.613e-05,2]
[351638287,1738680640984,-627.02,9.613e-05,2]
[351638288,1738680640993,-500.0,9.613e-05,2]
[351638290,1738680641007,-559.28,9.613e-05,2]
[351638292,1738680641016,-611.93,9.613e-05,2]
[351638294,1738680641024,-639.02,9.613e-05,2]
[351638296,1738680641033,-500.0,9.613e-05,2]
[351638298,1738680641044,-500.0,9.613e-05,2]
[351638300,1738680641054,-500.0,9.613e-05,2]
[351638303,1738680641064,-503.52,9.613e-05,2]
[351638304,1738680641074,-496.54653994,9.613e-05,2]
[351638306,1738680641084,-500.0,9.613e-05,2]
[351638308,1738680641094,-500.0,9.613e-05,2]
[351638310,1738680641104,-500.0,9.613e-05,2]
[351638312,1738680641113,-500.0,9.613e-05,2]
[351638314,1738680641123,-500.0,9.613e-05,2]
[351638316,1738680641132,-500.0,9.613e-05,2]
[351638318,1738680641143,-500.0,9.613e-05,2]
[351638321,1738680641154,-568.34,9.613e-05,2]
[351638323,1738680641163,-500.0,9.613e-05,2]
[351638325,1738680641173,-500.0,9.613e-05,2]
[351638327,1738680641182,-500.0,9.613e-05,2]
[351638329,1738680641191,-500.0,9.613e-05,2]
[351638331,1738680641201,-667.67,9.613e-05,2]
[351638332,1738680641211,-500.0,9.613e-05,2]
[351638335,1738680641221,-648.81,9.613e-05,2]
[351638337,1738680641231,-500.0,9.613e-05,2]
[351638339,1738680641239,-500.0,9.614e-05,2]
[351638341,1738680641248,-1284.74,9.614e-05,2]
[351638343,1738680641258,-500.0,9.614e-05,2]
[351638344,1738680641268,-500.0,9.614e-05,2]
[351638346,1738680641277,-500.0,9.614e-05,2]
[351638348,1738680641286,-526.32,9.614e-05,2]
[351638350,1738680641295,-500.0,9.614e-05,2]
[351638352,1738680641304,-500.0,9.614e-05,2]
[351638354,1738680641314,-548.07,9.614e-05,2]
[351638356,1738680641323,-1000.0,9.614e-05,2]
[351638358,1738680641331,-531.06,9.614e-05,2]
[351638360,1738680641340,-523.52,9.614e-05,2]
[351638362,1738680641350,-502.53,9.614e-05,2]
[351638364,1738680641359,-500.0,9.615e-05,2]
[351638366,1738680641368,-500.0,9.615e-05,2]
[351638368,1738680641378,-500.0,9.615e-05,2]
[351638370,1738680641390,-484.19450191,9.615e-05,2]
[351638372,1738680641399,-500.0,9.615e-05,2]
[351638374,1738680641408,-397.7,9.615e-05,2]
[351638376,1738680641417,-500.0,9.615e-05,2]
[351638378,1738680641426,-578.27,9.615e-05,2]
[351638380,1738680641436,-517.33,9.615e-05,2]
[351638382,1738680641445,-500.0,9.615e-05,2]
[351638384,1738680641455,-500.0,9.615e-05,2]
[351638386,1738680641464,-500.0,9.615e-05,2]
[351638388,1738680641473,-516.45,9.615e-05,2]
[351638390,1738680641483,-500.0,9.615e-05,2]
[351638392,1738680641493,-500.0,9.615e-05,2]
[351638394,1738680641503,-253.16056372,9.615e-05,2]
[351638395,1738680641513,-500.0,9.615e-05,2]
[351638396,1738680641523,-500.0,9.615e-05,2]
[351638397,1738680641533,-500.0,9.615e-05,2]
[351638398,1738680641542,-310.42,9.615e-05,2]
[351638399,1738680641551,-500.0,9.615e-05,2]
[351638400,1738680641560,-500.0,9.615e-05,2]
[351638401,1738680641570,-165.51,9.615e-05,2]
[351638402,1738680641579,-500.0,9.615e-05,2]
[351638403,1738680641588,-500.0,9.615e-05,2]
[351638404,1738680641598,-500.0,9.615e-05,2]
[351638406,1738680641608,-500.0,9.615e-05,2]
[351638408,1738680641618,-500.0,9.615e-05,2]
[351638410,1738680641627,-500.0,9.615e-05,2]
[351638412,1738680641638,-193.01,9.615e-05,2]
[351638414,1738680641647,-500.0,9.615e-05,2]
[351638416,1738680641657,-500.0,9.615e-05,2]
[351638418,1738680641666,-465.36507717,9.615e-05,2]
[351638420,1738680641675,-500.0,9.615e-05,2]
[351638422,1738680641685,-500.0,9.615e-05,2]
[351638424,1738680641695,-500.0,9.615e-05,2]
[351638426,1738680641704,-500.0,9.615e-05,2]
[351638428,1738680641713,-500.0,9.615e-05,2]
[351638430,1738680641723,-500.0,9.615e-05,2]
[351638432,1738680641732,-439.75331323,9.615e-05,2]
[351638434,1738680641741,-500.0,9.615e-05,2]
[351638436,1738680641752,-235.16,9.615e-05,2]
[351638438,1738680641761,-1500.0,9.7e-05,3]
[351638441,1738680641771,-1000.0,9.722e-05,2]
[351638443,1738680641781,-500.0,9.749e-05,2]
[351638445,1738680641790,-500.0,9.749e-05,2]
[351638446,1738680641800,-500.0,9.749e-05,2]
[351638448,1738680641810,-500.0,9.749e-05,2]
[351638450,1738680641819,-500.0,9.749e-05,2]
[351638452,1738680641829,-500.0,9.749e-05,2]
[351638454,1738680641838,-500.0,9.749e-05,2]
[351638456,1738680641848,-323.623537,9.749e-05,2]
[351638458,1738680641858,-500.0,9.749e-05,2]
[351638460,1738680641867,-500.0,9.749e-05,2]
[351638462,1738680641876,-500.0,9.749e-05,2]
[351638464,1738680641890,-500.0,9.749e-05,2]
[351638466,1738680641903,-500.0,9.749e-05,2]
[351638468,1738680641914,-500.0,9.749e-05,2]
[351638470,1738680641924,-500.0,9.749e-05,2]
[351638472,1738680641935,-500.0,9.749e-05,2]
[351638474,1738680641944,-511.43,9.749e-05,2]
[351638476,1738680641954,-640.04,9.749e-05,2]
[351638478,1738680641964,-500.0,9.749e-05,2]
[351638480,1738680641974,-309.680856,9.749e-05,2]
[351638482,1738680641983,-500.0,9.749e-05,2]
[351638484,1738680641994,-569.96,9.749e-05,2]
[351638486,1738680642003,-564.29,9.749e-05,2]
[351638488,1738680642016,-565.28,9.749e-05,2]
[351638490,1738680642027,-500.0,9.749e-05,2]
[351638492,1738680642036,-534.05,9.749e-05,2]
[351638494,1738680642047,-500.0,9.749e-05,2]
[351638496,1738680642057,-500.0,9.749e-05,2]
[351638498,1738680642066,-500.0,9.749e-05,2]
[351638500,1738680642075,-856.73,9.749e-05,2]